fUST/lending_fUST_20251212
["ID","MTS","AMOUNT","RATE_DAILY","PERIOD"]
[398308912,1765522728744,-500.0,0.00046575,120]
[398308913,1765522728775,-500.0,0.00046575,120]
[398308914,1765522728809,-500.68011509,0.00046575,120]
[398308915,1765522728842,-500.0,0.00046575,120]
[398308916,1765522728876,-797.77,0.00046575,120]
[398308917,1765522728905,-500.0,0.00046575,120]
[398308918,1765522728935,-500.0,0.00046575,120]
[398308919,1765522729145,-500.0,0.00046575,120]
[398308920,1765522729173,-1088.02,0.00046575,120]
[398308921,1765522729200,-500.0,0.00046575,120]
[398308922,1765522729227,-505.19208411,0.00046575,120]
[398308923,1765522729256,-956.91,0.00046575,120]
[398308924,1765522729285,-500.0,0.00046575,120]
[398308925,1765522729313,-3199.14,0.00046575,120]
[398308926,1765522729341,-500.0,0.00046575,120]
[398308927,1765522729369,-695.92,0.00046575,120]
[398308928,1765522729398,-500.0,0.00046575,120]
[398308929,1765522729427,-500.0,0.00046575,120]
[398308930,1765522729454,-829.36,0.00046575,120]
[398308931,1765522729482,-758.9,0.00046575,120]
[398308932,1765522729510,-500.0,0.00046575,120]
[398308933,1765522729539,-2256.18,0.00046575,30]
[398308934,1765522729567,-500.0,0.00046575,120]
[398308935,1765522729598,-500.0,0.00046575,120]
[398308936,1765522729636,-500.0,0.00046575,120]
[398308937,1765522729664,-500.0,0.00046575,20]
[398308938,1765522729691,-500.0,0.00046575,120]
[398308939,1765522729718,-500.0,0.00046575,120]
[398308940,1765522729745,-685.67,0.00046575,120]
[398308941,1765522729776,-500.0,0.00046575,120]
[398308942,1765522729802,-2049.37,0.00046575,120]
[398308943,1765522729829,-500.0,0.00046575,120]
[398308944,1765522729855,-500.0,0.00046575,120]
[398308945,1765522729881,-500.0,0.00046575,120]
[398308946,1765522729909,-500.0,0.00046575,120]
[398308947,1765522729937,-500.0,0.00046575,120]
[398308948,1765522729964,-500.0,0.00046575,120]
[398308949,1765522729990,-500.0,0.00046575,120]
[398308950,1765522730018,-500.0,0.00046575,120]
[398308951,1765522730045,-500.0,0.00046575,120]
[398308952,1765522730076,-500.0,0.00046575,120]
[398308953,1765522730105,-500.0,0.00046575,120]
[398308954,1765522730134,-500.0,0.00046575,120]
[398308955,1765522730167,-500.0,0.00046575,120]
[398308956,1765522730198,-500.0,0.00046575,120]
[398308957,1765522730225,-500.0,0.00046575,120]
[398308958,1765522730252,-500.0,0.00046575,120]
[398308959,1765522730277,-500.0,0.00046575,120]
[398308960,1765522730304,-1495.74,0.00046575,120]
[398308961,1765522730331,-973.25,0.00046575,120]
[398308962,1765522730358,-500.59968634,0.00046575,120]
[398308963,1765522730384,-500.0,0.00046575,100]
[398308964,1765522730412,-500.0,0.00046575,120]
[398308965,1765522730439,-500.60724424,0.00046575,120]
[398308966,1765522730466,-500.0,0.00046575,120]
[398308967,1765522730498,-922.08,0.00046575,120]
[398308968,1765522730528,-500.0,0.00046575,120]
[398308969,1765522730558,-2232.19,0.00046575,120]
[398308970,1765522730584,-500.0,0.00046575,120]
[398308971,1765522730610,-500.0,0.00046575,120]
[398308972,1765522730638,-616.57,0.00046575,120]
[398308973,1765522730664,-2914.33,0.00046575,120]
[398308974,1765522730690,-1565.98,0.00046575,120]
[398308975,1765522730715,-2415.75,0.00046575,120]
[398308976,1765522730740,-500.0,0.00046575,120]
[398308977,1765522730765,-500.0,0.00046575,120]
[398308978,1765522730790,-500.0,0.00046575,120]
[398308979,1765522730815,-605.24,0.00046575,120]
[398308980,1765522730840,-500.0,0.00046575,120]
[398308981,1765522730865,-6274.27,0.00046575,120]
[398308982,1765522730890,-500.0,0.00046575,120]
[398308983,1765522730916,-736.06,0.00046575,120]
[398308984,1765522730941,-2391.73,0.00046575,120]
[398308985,1765522730966,-500.0,0.00046575,120]
[398308986,1765522730990,-2774.57,0.00046575,120]
[398308987,1765522731016,-500.0,0.00046575,120]
[398308988,1765522731040,-605.85,0.00046575,120]
[398308989,1765522731065,-500.0,0.00046575,120]
[398308990,1765522731090,-500.0,0.00046575,120]
[398308991,1765522731117,-500.0,0.00046575,120]
[398308992,1765522731142,-500.0,0.00046575,120]
[398308993,1765522731169,-500.0,0.00046575,120]
[398308994,1765522731195,-789.88,0.00046575,120]
[398308995,1765522731221,-1658.63,0.00046575,120]
[398308996,1765522731247,-500.0,0.00046575,120]
[398308997,1765522731274,-612.09,0.00046575,120]
[398308998,1765522731302,-500.0,0.00046575,120]
[398308999,1765522731332,-500.0,0.00046575,120]
[398309000,1765522731360,-543.96758706,0.00046575,120]
[398309001,1765522731389,-500.0,0.00046575,120]
[398309002,1765522731418,-500.0,0.00046575,120]
[398309003,1765522731446,-500.0,0.00046575,120]
[398309004,1765522731473,-500.0,0.00046575,120]
[398309005,1765522731498,-500.0,0.00046575,120]
[398309006,1765522731524,-935.39,0.00046575,120]
[398309007,1765522731557,-500.0,0.00046575,120]
[398309008,1765522731583,-500.0,0.00046575,120]
[398309009,1765522731610,-500.0,0.00046575,120]
[398309010,1765522731637,-500.0,0.00046575,120]
[398309011,1765522731663,-500.0,0.00046575,120]
[398309012,1765522731688,-587.6,0.00046575,120]
[398309013,1765522731713,-321.51002629,0.00046575,120]
[398309014,1765522731881,-500.0,0.00046575,120]
[398309015,1765522731939,-1139.63,0.00046575,120]
[398309016,1765522731965,-500.0,0.00046575,120]
[398309017,1765522731991,-500.0,0.00046575,120]
[398309018,1765522732019,-500.0,0.00046575,120]
[398309019,1765522732046,-736.74,0.00046575,120]
[398309020,1765522732073,-1219.12,0.00046575,120]
[398309021,1765522732098,-500.0,0.00046575,120]
[398309022,1765522732126,-500.56874106,0.00046575,120]
[398309023,1765522732152,-697.09,0.00046575,120]
[398309024,1765522732181,-500.0,0.00046575,120]
[398309025,1765522732207,-500.0,0.00046575,120]
[398309026,1765522732235,-500.0,0.00046575,120]
[398309027,1765522732262,-733.04,0.00046575,120]
[398309028,1765522732288,-500.0,0.00046575,120]
[398309029,1765522732317,-500.0,0.00046575,120]
[398309030,1765522732344,-500.0,0.00046575,120]
[398309031,1765522732372,-1414.72,0.00046575,120]
[398309032,1765522732399,-841.3,0.00046575,120]
[398309033,1765522732425,-500.0,0.00046575,120]
[398309034,1765522732451,-1049.52,0.00046575,120]
[398309035,1765522732477,-500.0,0.00046575,120]
[398309036,1765522732503,-500.0,0.00046575,120]
[398309037,1765522732530,-500.0,0.00046575,120]
[398309038,1765522732560,-500.0,0.00046575,120]
[398309039,1765522732586,-500.0,0.00046575,120]
[398309040,1765522732612,-1972.57,0.00046575,120]
[398309041,1765522732638,-526.03037918,0.00046575,120]
[398309042,1765522732664,-500.0,0.00046575,120]
[398309043,1765522732689,-500.0,0.00046575,120]
[398309044,1765522732715,-500.0,0.00046575,120]
[398309045,1765522732740,-500.0,0.00046575,120]
[398309046,1765522732766,-500.0,0.00046575,120]
[398309047,1765522732791,-1952.98,0.00046575,120]
[398309048,1765522732817,-500.0,0.00046575,120]
[398309049,1765522732842,-500.0,0.00046575,120]
[398309050,1765522732868,-500.0,0.00046575,120]
[398309051,1765522732894,-679.12,0.00046575,120]
[398309052,1765522732921,-1054.79,0.00046575,120]
[398309053,1765522732947,-500.0,0.00046575,120]
[398309054,1765522732973,-500.0,0.00046575,120]
[398309055,1765522733000,-488.7991828,0.00046575,120]
[398309056,1765522733025,-500.0,0.00046575,120]
[398309057,1765522733052,-715.78,0.00046575,120]
[398309058,1765522733079,-500.0,0.00046575,120]
[398309059,1765522733106,-500.0,0.00046575,120]
[398309060,1765522733133,-500.0,0.00046575,120]
[398309061,1765522733160,-500.0,0.00046575,120]
[398309062,1765522733188,-500.0,0.00046575,120]
[398309063,1765522733217,-500.0,0.00046575,120]
[398309064,1765522733245,-500.0,0.00046575,120]
[398309065,1765522733274,-500.0,0.00046575,120]
[398309066,1765522733302,-500.0,0.00046575,120]
[398309067,1765522733331,-500.0,0.00046575,120]
[398309068,1765522733360,-1081.55,0.00046575,120]
[398309069,1765522733388,-500.0,0.00046575,120]
[398309070,1765522733416,-729.92,0.00046575,120]
[398309071,1765522733444,-500.0,0.00046575,120]
[398309072,1765522733472,-1090.86,0.00046575,120]
[398309073,1765522733500,-500.0,0.00046575,120]
[398309074,1765522733529,-500.0,0.00046575,120]
[398309075,1765522733558,-1614.17,0.00046575,120]
[398309076,1765522733584,-500.69257826,0.00046575,120]
[398309077,1765522733611,-500.0,0.00046575,120]
[398309078,1765522733638,-500.0,0.00046575,120]
[398309079,1765522733667,-500.0,0.00046575,120]
[398309080,1765522733697,-649.35,0.00046575,120]
[398309081,1765522733726,-1697.46,0.00046575,120]
[398309082,1765522733755,-992.34,0.00046575,120]
[398309083,1765522733783,-500.0,0.00046575,120]
[398309084,1765522733812,-246.71143979,0.00046575,120]
[398309085,1765522733840,-1300.04,0.00046575,120]
[398309086,1765522733869,-261.94177795,0.00046575,120]
[398309087,1765522733896,-500.0,0.00046575,120]
[398309088,1765522733923,-500.0,0.00046575,120]
[398309089,1765522733952,-578.23,0.00046575,120]
[398309090,1765522733978,-500.0,0.00046575,120]
[398309091,1765522734004,-500.0,0.00046575,120]
[398309092,1765522734030,-500.0,0.00046575,120]
[398309093,1765522734057,-500.0,0.00046575,120]
[398309094,1765522734084,-568.21,0.00046575,120]
[398309095,1765522734112,-729.54,0.00046575,120]
[398309096,1765522734139,-500.0,0.00046575,30]
[398309097,1765522734166,-500.0,0.00046575,120]
[398309098,1765522734192,-500.0,0.00046575,120]
[398309099,1765522734218,-922.96,0.00046575,120]
[398309100,1765522734245,-500.0,0.00046575,120]
[398309101,1765522734272,-500.0,0.00046575,120]
[398309102,1765522734299,-500.0,0.00046575,120]
[398309103,1765522734328,-1563.64,0.00046575,120]
[398309104,1765522734355,-500.0,0.00046575,120]
[398309105,1765522734383,-546.73,0.00046575,120]
[398309106,1765522734412,-500.0,0.00046575,120]
[398309107,1765522734440,-500.0,0.00046575,120]
[398309108,1765522734468,-500.0,0.00046575,120]
[398309109,1765522734496,-500.0,0.00046575,120]
[398309110,1765522734708,-500.0,0.00046575,14]
[398309111,1765522734738,-500.0,0.00046575,120]
[398309112,1765522734768,-1436.1,0.00046575,120]
[398309113,1765522734796,-500.0,0.00046575,120]
[398309114,1765522734822,-500.0,0.00046575,120]
[398309115,1765522734848,-500.0,0.00046575,120]
[398309116,1765522734874,-500.0,0.00046575,120]
[398309117,1765522734900,-3658.31,0.00046575,120]
[398309118,1765522734925,-500.0,0.00046575,120]
[398309119,1765522734952,-500.0,0.00046575,120]
[398309120,1765522734979,-500.0,0.00046575,120]
[398309121,1765522735007,-500.0,0.00046575,120]
[398309122,1765522735034,-1868.33,0.00046575,120]
[398309123,1765522735060,-500.0,0.00046575,120]
[398309124,1765522735087,-1057.05,0.00046575,120]
[398309125,1765522735113,-500.0,0.00046575,120]
[398309126,1765522735139,-500.0,0.00046575,120]
[398309127,1765522735164,-500.0,0.00046575,120]
[398309128,1765522735190,-500.0,0.00046575,120]
[398309129,1765522735216,-500.0,0.00046575,120]
[398309130,1765522735242,-500.0,0.00046575,120]
[398309131,1765522735269,-500.0,0.00046575,120]
[398309132,1765522735294,-500.62912529,0.00046575,120]
[398309133,1765522735320,-500.0,0.00046575,120]
[398309134,1765522735346,-644.68,0.00046575,120]
[398309135,1765522735372,-500.0,0.00046575,120]
[398309136,1765522735399,-656.75,0.00046575,120]
[398309137,1765522735430,-500.0,0.00046575,120]
[398309138,1765522735456,-535.57,0.00046575,120]
[398309139,1765522735483,-784.21,0.00046575,120]
[398309140,1765522735509,-922.66,0.00046575,120]
[398309141,1765522735538,-500.0,0.00046575,120]
[398309142,1765522735565,-500.0,0.00046575,120]
[398309143,1765522735591,-500.0,0.00046575,120]
[398309144,1765522735617,-500.0,0.00046575,120]
[398309145,1765522735644,-548.87,0.00046575,120]
[398309146,1765522735674,-1751.02,0.00046575,120]
[398309147,1765522735700,-500.0,0.00046575,120]
[398309148,1765522735726,-500.0,0.00046575,120]
[398309149,1765522735752,-500.0,0.00046575,120]
[398309150,1765522735780,-955.14,0.00046575,120]
[398309151,1765522735808,-500.0,0.00046575,120]
[398309152,1765522735835,-1266.64,0.00046575,120]
[398309153,1765522735862,-889.56,0.00046575,7]
[398309154,1765522735890,-500.0,0.00046575,120]
[398309155,1765522735919,-1346.87,0.00046575,120]
[398309156,1765522735948,-500.0,0.00046575,120]
[398309157,1765522735978,-500.0,0.00046575,120]
[398309158,1765522736007,-500.0,0.00046575,120]
[398309159,1765522736035,-500.0,0.00046575,120]
[398309160,1765522736063,-500.0,0.00046575,120]
[398309161,1765522736092,-1121.68,0.00046575,120]
[398309162,1765522736121,-749.5,0.00046575,120]
[398309163,1765522736150,-500.0,0.00046575,120]
[398309164,1765522736178,-500.0,0.00046575,120]
[398309165,1765522736207,-500.0,0.00046575,120]
[398309166,1765522736236,-1926.13,0.00046575,120]
[398309167,1765522736265,-500.0,0.00046575,60]
[398309168,1765522736294,-500.0,0.00046575,120]
[398309169,1765522736324,-500.0,0.00046575,120]
[398309170,1765522736352,-750.11,0.00046575,120]
[398309171,1765522736379,-500.0,0.00046575,120]
[398309172,1765522736407,-500.0,0.00046575,120]
[398309173,1765522736435,-500.0,0.00046575,120]
[398309174,1765522736462,-270.6143555,0.00046575,120]
[398309175,1765522736490,-500.0,0.00046575,120]
[398309176,1765522736517,-500.0,0.00046575,120]
[398309177,1765522736544,-1774.29,0.00046575,120]
[398309178,1765522736570,-500.0,0.00046575,120]
[398309179,1765522736599,-500.0,0.00046575,120]
[398309180,1765522736627,-500.0,0.00046575,120]
[398309181,1765522736654,-906.11,0.00046575,120]
[398309182,1765522736679,-500.45112723,0.00046575,120]
[398309183,1765522736704,-563.56,0.00046575,120]
[398309184,1765522736729,-1069.48,0.00046575,120]
[398309185,1765522736755,-500.0,0.00046575,120]
[398309186,1765522736782,-500.0,0.00046575,120]
[398309187,1765522736808,-817.8,0.00046575,120]
[398309188,1765522736834,-500.0,0.00046575,120]
[398309189,1765522736860,-722.62,0.00046575,120]
[398309190,1765522736885,-500.0,0.00046575,120]
[398309191,1765522736911,-500.0,0.00046575,120]
[398309192,1765522736937,-500.0,0.00046575,120]
[398309193,1765522736962,-738.71,0.00046575,120]
[398309194,1765522736988,-500.0,0.00046575,120]
[398309195,1765522737014,-503.69992493,0.00046575,120]
[398309196,1765522737043,-500.0,0.00046575,120]
[398309197,1765522737069,-500.0,0.00046575,120]
[398309198,1765522737095,-1327.54,0.00046575,120]
[398309199,1765522737126,-500.0,0.00046575,120]
[398309200,1765522737154,-506.60077854,0.00046575,120]
[398309201,1765522737186,-1870.77,0.00046575,120]
[398309202,1765522737214,-625.3359584,0.00046575,120]
[398309203,1765522737241,-4322.65,0.00046575,120]
[398309204,1765522737269,-1387.48,0.00046575,120]
[398309205,1765522737296,-774.18,0.00046575,120]
[398309206,1765522737501,-500.0,0.00046575,120]
[398309207,1765522737533,-500.0,0.00046575,120]
[398309208,1765522737561,-500.0,0.00046575,120]
[398309209,1765522737587,-500.0,0.00046575,120]
[398309210,1765522737613,-757.52,0.00046575,120]
[398309211,1765522737638,-500.0,0.00046575,120]
[398309212,1765522737664,-500.0,0.00046575,120]
[398309213,1765522737691,-669.1,0.00046575,120]
[398309214,1765522737716,-500.0,0.00046575,120]
[398309215,1765522737743,-3787.67,0.00046575,120]
[398309216,1765522737771,-3523.76,0.00046575,120]
[398309217,1765522737799,-500.0,0.00046575,120]
[398309218,1765522737832,-500.0,0.00046575,120]
[398309219,1765522737863,-500.0,0.00046575,60]
[398309220,1765522737900,-504.37641461,0.00046575,120]
[398309221,1765522737933,-2535.61,0.00046575,120]
[398309222,1765522737959,-500.0,0.00046575,120]
[398309223,1765522737986,-500.0,0.00046575,120]
[398309224,1765522738012,-500.0,0.00046575,120]
[398309225,1765522738038,-500.0,0.00046575,120]
[398309226,1765522738064,-500.0,0.00046575,120]
[398309227,1765522738091,-500.0,0.00046575,120]
[398309228,1765522738116,-500.0,0.00046575,120]
[398309229,1765522738143,-2058.42,0.00046575,120]
[398309230,1765522738168,-500.0,0.00046575,120]
[398309231,1765522738199,-2491.8,0.00046575,120]
[398309232,1765522738227,-1170.96,0.00046575,120]
[398309233,1765522738255,-500.30461858,0.00046575,120]
[398309234,1765522738282,-660.45,0.00046575,120]
[398309235,1765522738310,-535.86,0.00046575,120]
[398309236,1765522738339,-7174.87,0.00046575,120]
[398309237,1765522738367,-500.0,0.00046575,120]
[398309238,1765522738395,-500.0,0.00046575,120]
[398309239,1765522738423,-500.0,0.00046575,120]
[398309240,1765522738451,-265.17980254,0.00046575,120]
[398309241,1765522738483,-1669.79,0.00046575,21]
[398309242,1765522738513,-500.0,0.00046575,120]
[398309243,1765522738542,-500.0,0.00046575,120]
[398309244,1765522738569,-500.0,0.00046575,120]
[398309245,1765522738598,-1933.08,0.00046575,120]
[398309246,1765522738626,-500.0,0.00046575,120]
[398309247,1765522738656,-806.5,0.00046575,120]
[398309248,1765522738683,-500.0,0.00046575,120]
[398309249,1765522738709,-500.0,0.00046575,120]
[398309250,1765522738736,-1223.74,0.00046575,120]
[398309251,1765522738763,-500.0,0.00046575,120]
[398309252,1765522738790,-500.0,0.00046575,120]
[398309253,1765522738817,-500.0,0.00046575,120]
[398309254,1765522738845,-500.0,0.00046575,120]
[398309255,1765522738873,-500.0,0.00046575,120]
[398309256,1765522738901,-500.0,0.00046575,120]
[398309257,1765522738929,-500.0,0.00046575,120]
[398309258,1765522738957,-748.91,0.00046575,120]
[398309259,1765522738985,-2969.42,0.00046575,120]
[398309260,1765522739013,-642.45,0.00046575,120]
[398309261,1765522739042,-2087.13,0.00046575,120]
[398309262,1765522739079,-500.0,0.00046575,120]
[398309263,1765522739110,-11900.94,0.00046575,120]
[398309264,1765522739137,-1138.15,0.00046575,120]
[398309265,1765522739165,-500.0,0.00046575,120]
[398309266,1765522739193,-500.0,0.00046575,120]
[398309267,1765522739220,-1638.32,0.00046575,30]
[398309268,1765522739248,-11009.97,0.00046575,120]
[398309269,1765522739276,-741.59,0.00046575,120]
[398309270,1765522739304,-1502.82,0.00046575,120]
[398309271,1765522739332,-500.0,0.00046575,120]
[398309272,1765522739361,-500.0,0.00046575,120]
[398309273,1765522739388,-500.0,0.00046575,120]
[398309274,1765522739416,-500.36897405,0.00046575,120]
[398309275,1765522739444,-500.0,0.00046575,120]
[398309276,1765522739472,-730.6,0.00046575,120]
[398309277,1765522739500,-500.0,0.00046575,120]
[398309278,1765522739540,-1750.4,0.00046575,120]
[398309279,1765522739570,-500.0,0.00046575,120]
[398309280,1765522739600,-500.0,0.00046575,120]
[398309281,1765522739630,-1330.92,0.00046575,120]
[398309282,1765522739659,-500.0,0.00046575,120]
[398309283,1765522739692,-500.0,0.00046575,120]
[398309284,1765522739722,-602.77,0.00046575,120]
[398309285,1765522739752,-5552.75,0.00046575,120]
[398309286,1765522739783,-500.0,0.00046575,120]
[398309287,1765522739815,-500.0,0.00046575,120]
[398309288,1765522739848,-500.0,0.00046575,120]
[398309289,1765522739877,-580.08540515,0.00046575,120]
[398309290,1765522739904,-500.0,0.00046575,120]
[398309291,1765522739932,-500.0,0.00046575,120]
[398309292,1765522739959,-2340.67,0.00046575,120]
[398309293,1765522739986,-500.0,0.00046575,120]
[398309294,1765522740014,-500.0,0.00046575,120]
[398309295,1765522740042,-773.07,0.00046575,120]
[398309296,1765522740070,-6965.18,0.00046575,120]
[398309297,1765522740098,-500.0,0.00046575,120]
[398309298,1765522740125,-543.1,0.00046575,120]
[398309299,1765522740153,-869.94,0.00046575,120]
[398309300,1765522740181,-1995.96,0.00046575,120]
[398309301,1765522740442,-792.08,0.00046575,120]
[398309302,1765522740481,-500.0,0.00046575,120]
[398309303,1765522740512,-829.2,0.00046575,120]
[398309304,1765522740542,-500.0,0.00046575,120]
[398309305,1765522740571,-500.0,0.00046575,120]
[398309306,1765522740601,-2884.18,0.00046575,120]
[398309307,1765522740632,-5726.32,0.00046575,120]
[398309308,1765522740659,-500.0,0.00046575,120]
[398309309,1765522740687,-14362.59,0.00046575,120]
[398309310,1765522740714,-500.0,0.00046575,120]
[398309311,1765522740742,-565.80763772,0.00046575,120]
[398309312,1765522740771,-500.0,0.00046575,120]
[398309313,1765522740800,-500.0,0.00046575,120]
[398309314,1765522740831,-16201.21,0.00046575,120]
[398309315,1765522740860,-500.0,0.00046575,120]
[398309316,1765522740889,-1346.53,0.00046575,120]
[398309317,1765522740917,-588.3,0.00046575,120]
[398309318,1765522740944,-500.0,0.00046575,120]
[398309319,1765522740970,-500.0,0.00046575,120]
[398309320,1765522740998,-500.0,0.00046575,120]
[398309321,1765522741026,-500.0,0.00046575,120]
[398309322,1765522741053,-500.0,0.00046575,120]
[398309323,1765522741081,-500.0,0.00046575,60]
[398309324,1765522741109,-3933.9,0.00046575,120]
[398309325,1765522741138,-500.0,0.00046575,120]
[398309326,1765522741165,-2194.05,0.00046575,120]
[398309327,1765522741192,-796.43,0.00046575,120]
[398309328,1765522741219,-500.0,0.00046575,120]
[398309329,1765522741247,-500.0,0.00046575,120]
[398309330,1765522741275,-1686.09,0.00046575,120]
[398309331,1765522741304,-14836.37,0.00046575,120]
[398309332,1765522741332,-1635.58,0.00046575,120]
[398309333,1765522741359,-510.93224393,0.00046575,120]
[398309334,1765522741386,-500.0,0.00046575,120]
[398309335,1765522741416,-500.0,0.00046575,120]
[398309336,1765522741443,-1397.88,0.00046575,120]
[398309337,1765522741469,-500.0,0.00046575,120]
[398309338,1765522741496,-500.43394647,0.00046575,120]
[398309339,1765522741524,-500.0,0.00046575,120]
[398309340,1765522741556,-2118.27,0.00046575,120]
[398309341,1765522741587,-500.0,0.00046575,120]
[398309342,1765522741613,-1506.78,0.00046575,120]
[398309343,1765522741639,-500.0,0.00046575,120]
[398309344,1765522741665,-991.08,0.00046575,120]
[398309345,1765522741691,-1474.26,0.00046575,120]
[398309346,1765522741717,-500.0,0.00046575,120]
[398309347,1765522741744,-500.0,0.00046575,120]
[398309348,1765522741769,-500.0,0.00046575,120]
[398309349,1765522741796,-500.0,0.00046575,120]
[398309350,1765522741822,-500.0,0.00046575,120]
[398309351,1765522741849,-500.0,0.00046575,120]
[398309352,1765522741876,-500.0,0.00046575,120]
[398309353,1765522741903,-2032.25,0.00046575,120]
[398309354,1765522741928,-442.76013965,0.00046575,120]
[398309355,1765522741956,-2716.27,0.00046575,120]
[398309356,1765522741981,-165.89946659,0.00046575,120]
[398309357,1765522742007,-1926.5,0.00046575,120]
[398309358,1765522742032,-500.0,0.00046575,120]
[398309359,1765522742058,-500.0,0.00046575,120]
[398309360,1765522742084,-524.96,0.00046575,120]
[398309361,1765522742110,-500.0,0.00046575,120]
[398309362,1765522742140,-559.01,0.00046575,120]
[398309363,1765522742171,-500.0,0.00046575,120]
[398309364,1765522742201,-3558.85,0.00046575,120]
[398309365,1765522742230,-1425.58,0.00046575,120]
[398309366,1765522742259,-500.0,0.00046575,120]
[398309367,1765522742287,-500.0,0.00046575,120]
[398309368,1765522742317,-500.0,0.00046575,120]
[398309369,1765522742345,-500.70318211,0.00046575,120]
[398309370,1765522742373,-560.21,0.00046575,120]
[398309371,1765522742400,-500.0,0.00046575,120]
[398309372,1765522742427,-536.6,0.00046575,120]
[398309373,1765522742455,-3156.52,0.00046575,60]
[398309374,1765522742486,-2895.12,0.00046575,120]
[398309375,1765522742514,-3356.79,0.00046575,120]
[398309376,1765522742545,-4128.24,0.00046575,120]
[398309377,1765522742575,-6550.78,0.00046575,120]
[398309378,1765522742604,-34959.56,0.00046575,120]
[398309379,1765522742632,-500.0,0.00046575,120]
[398309380,1765522742658,-500.0,0.00046575,120]
[398309381,1765522742684,-500.0,0.00046575,120]
[398309382,1765522742711,-4913.5,0.00046575,120]
[398309383,1765522742738,-500.0,0.00046575,120]
[398309384,1765522742766,-500.0,0.00046575,120]
[398309385,1765522742794,-500.0,0.00046575,120]
[398309386,1765522742821,-827.77,0.00046575,120]
[398309387,1765522742848,-500.0,0.00046575,120]
[398309388,1765522742875,-2300.92,0.00046575,120]
[398309389,1765522742902,-3691.82,0.00046575,120]
[398309390,1765522742929,-2480.5,0.00046575,120]
[398309391,1765522742954,-500.0,0.00046575,120]
[398309392,1765522742980,-500.0,0.00046575,120]
[398309393,1765522743006,-500.0,0.00046575,120]
[398309394,1765522743033,-722.73,0.00046575,120]
[398309395,1765522743062,-4419.0,0.00046575,120]
[398309396,1765522743089,-501.21494137,0.00046575,120]
[398309397,1765522743315,-831.5,0.00046575,120]
[398309398,1765522743346,-199.46575348,0.00046575,120]
[398309399,1765522743375,-501.38609735,0.00046575,120]
[398309400,1765522743405,-858.72,0.00046575,120]
[398309401,1765522743435,-500.99148057,0.00046575,15]
[398309402,1765522743464,-500.0,0.00046575,120]
[398309403,1765522743493,-1198.81,0.00046575,120]
[398309404,1765522743522,-501.05986414,0.00046575,120]
[398309405,1765522743553,-500.0,0.00046575,120]
[398309406,1765522743580,-7921.22,0.00046575,120]
[398309407,1765522743615,-1515.74,0.00046575,120]
[398309408,1765522743646,-500.0,0.00046575,120]
[398309409,1765522743676,-500.0,0.00046575,120]
[398309410,1765522743705,-500.0,0.00046575,120]
[398309411,1765522743736,-500.0,0.00046575,120]